{"text_format":"3","workbook":"xlsx","n_sheets":4,"sheets":["Start","Trouwbudget","Kleding-receptie-muziek-foto","Versiering-bloemen-cadeaus-reis"],"not_rendered":{"charts":1,"defined_names":22},"read":"whole","date_system":"1900"}

{"sheet":"Start","index":0,"n_rows":7,"n_cols":2,"rows_kept":7}
[null,"OVER DEZE SJABLOON"]
[null,"Gebruik deze sjabloon om de uitgaven voor uw bruiloft bij te houden."]
[null,"Voer de geschat en de werkelijk gemaakte kosten in verschillende categorieën in op afzonderlijke werkbladen."]
[null,"Het overzicht grafiek van het trouwbudget worden automatisch voor u bijgewerkt."]
[null,"Opmerking: "]
[null,"Kolom A van elk werkblad bevat aanvullende instructies. Deze tekst is opzettelijk verborgen. Als u tekst wilt verwijderen, selecteert u kolom A en drukt u op Delete. Als u de tekst zichtbaar wilt maken, selecteert u kolom A en wijzigt u de tekenkleur."]
[null,"Als u meer wilt weten over tabellen, drukt u in een tabel op Shift en F10 en selecteert u de optie Tabel en vervolgens Alternatieve tekst."]

{"sheet":"Trouwbudget","index":1,"n_rows":19,"n_cols":6,"rows_kept":19,"merged":[[2,2,4,5],[18,2,42,5]]}
["Maak een trouwbudget in dit werkblad. Voer details in in tabellen op de werkbladen Kleding-receptie-muziek-foto en Versiering-bloemen-cadeaus-reis om het overzicht en de grafiek op het huidige werkblad bij te werken. Cellen in deze kolom bevatten handige instructies voor het gebruik van dit werkblad. Het label Trouwdatum staat in cel C1.",null,"Trouwdatum:"]
["Voer in cel C2 de trouwdatum in. Het aantal resterende dagen wordt automatisch berekend in cel E2.",null,{"$f":"TODAY()+365","v":"2019-12-04"},"Resterende dagen:",{"$f":"C2-TODAY()","v":365}]
["De titel van dit werkblad staat in cel C3. De volgende aanwijzing staat in cel A6.",null,"Overzicht trouwbudget"]
[]
[]
["De tabel Budgetoverzicht die in C6 begint, wordt automatisch bijgewerkt. De volgende aanwijzing staat in cel A19.",null,"CATEGORIE","GESCHAT","WERKELIJK","BOVEN/ONDER"]
[null,null,"Kleding",{"$f":"Kleding_totaal_geschat","v":{"v":9490,"d":"9,490.00"}},{"$f":"Kleding_totaal_werkelijk","v":{"v":9770,"d":"9,770.00"}},{"$f":"Budgetoverzicht[[#This Row],[GESCHAT]]-Budgetoverzicht[[#This Row],[WERKELIJK]]","v":{"v":-280,"d":"-280.00"}}]
[null,null,"Receptie",{"$f":"Receptie_totaal_geschat","v":{"v":1050,"d":"1,050.00"}},{"$f":"Receptie_totaal_werkelijk","v":{"v":928,"d":"928.00"}},{"$f":"Budgetoverzicht[[#This Row],[GESCHAT]]-Budgetoverzicht[[#This Row],[WERKELIJK]]","v":{"v":122,"d":"122.00"}}]
[null,null,"Muziek",{"$f":"Muziek_entertainment_totaal_geschat","v":{"v":600,"d":"600.00"}},{"$f":"Muziek_entertainment_totaal_werkelijk","v":{"v":400,"d":"400.00"}},{"$f":"Budgetoverzicht[[#This Row],[GESCHAT]]-Budgetoverzicht[[#This Row],[WERKELIJK]]","v":{"v":200,"d":"200.00"}}]
[null,null,"Drukwerk",{"$f":"Drukwerk_briefpapier_totaal_geschat","v":{"v":935,"d":"935.00"}},{"$f":"Drukwerk_briefpapier_totaal_werkelijk","v":{"v":870,"d":"870.00"}},{"$f":"Budgetoverzicht[[#This Row],[GESCHAT]]-Budgetoverzicht[[#This Row],[WERKELIJK]]","v":{"v":65,"d":"65.00"}}]
[null,null,"Fotografie",{"$f":"Fotografie_totaal_geschat","v":{"v":1625,"d":"1,625.00"}},{"$f":"Fotografie_totaal_werkelijk","v":{"v":1575,"d":"1,575.00"}},{"$f":"Budgetoverzicht[[#This Row],[GESCHAT]]-Budgetoverzicht[[#This Row],[WERKELIJK]]","v":{"v":50,"d":"50.00"}}]
[null,null,"Versieringen",{"$f":"Versiering_totaal_geschat","v":{"v":700,"d":"700.00"}},{"$f":"Versiering_totaal_werkelijk","v":{"v":720,"d":"720.00"}},{"$f":"Budgetoverzicht[[#This Row],[GESCHAT]]-Budgetoverzicht[[#This Row],[WERKELIJK]]","v":{"v":-20,"d":"-20.00"}}]
[null,null,"Bloemen",{"$f":"Bloemen_totaal_geschat","v":{"v":900,"d":"900.00"}},{"$f":"Bloemen_totaal_werkelijk","v":{"v":850,"d":"850.00"}},{"$f":"Budgetoverzicht[[#This Row],[GESCHAT]]-Budgetoverzicht[[#This Row],[WERKELIJK]]","v":{"v":50,"d":"50.00"}}]
[null,null,"Cadeaus",{"$f":"Cadeaus_totaal_geschat","v":{"v":1345,"d":"1,345.00"}},{"$f":"Cadeaus_totaal_werkelijk","v":{"v":1075,"d":"1,075.00"}},{"$f":"Budgetoverzicht[[#This Row],[GESCHAT]]-Budgetoverzicht[[#This Row],[WERKELIJK]]","v":{"v":270,"d":"270.00"}}]
[null,null,"Reiskosten",{"$f":"Reiskosten_vervoer_totaal_geschat","v":{"v":100,"d":"100.00"}},{"$f":"Reiskosten_vervoer_totaal_werkelijk","v":{"v":165,"d":"165.00"}},{"$f":"Budgetoverzicht[[#This Row],[GESCHAT]]-Budgetoverzicht[[#This Row],[WERKELIJK]]","v":{"v":-65,"d":"-65.00"}}]
[null,null,"Anders",{"$f":"Overige_uitgaven_totaal_geschat","v":{"v":885,"d":"885.00"}},{"$f":"Overige_uitgaven_totaal_werkelijk","v":{"v":1021,"d":"1,021.00"}},{"$f":"Budgetoverzicht[[#This Row],[GESCHAT]]-Budgetoverzicht[[#This Row],[WERKELIJK]]","v":{"v":-136,"d":"-136.00"}}]
[null,null,"Totale uitgaven",{"$f":"SUBTOTAL(109,Budgetoverzicht[GESCHAT])","v":{"v":17630,"d":"17,630.00"}},{"$f":"SUBTOTAL(109,Budgetoverzicht[WERKELIJK])","v":{"v":17374,"d":"17,374.00"}},{"$f":"SUBTOTAL(109,Budgetoverzicht[BOVEN/ONDER])","v":{"v":256,"d":"256.00"}}]
[]
["Het cirkeldiagram in cel C19 wordt automatisch bijgewerkt.",null,"Deze cel bevat een cirkeldiagram met het percentage van elke uitgavencategorie."]

{"sheet":"Kleding-receptie-muziek-foto","index":2,"n_rows":56,"n_cols":6,"rows_kept":56,"merged":[[16,1,16,4],[28,1,28,4],[29,1,29,4],[35,1,35,4],[48,1,48,4]]}
["Voer geschat en werkelijke kosten in voor elke categorie in de desbetreffende tabellen in dit werkelijk. Het bedrag boven of onder het budget wordt automatisch berekend. Het label Kleding staat in de cel rechts. Cellen in deze kolom bevatten handige instructies voor het gebruik van dit werkblad. Druk op de pijl-omlaag om aan de slag te gaan.","Kleding",{"$nulls":3}," "]
[" Voer de gegevens in in de tabel Kleding die begint in de cel rechts. De volgende aanwijzing staat in cel A18.","CATEGORIE","GESCHAT","WERKELIJK","BOVEN/ONDER"," "]
[null,"Verlovingsring(en)",{"v":1500,"d":"1,500.00"},{"v":1500,"d":"1,500.00"},{"$f":"'Kleding-receptie-muziek-foto'!$C3-'Kleding-receptie-muziek-foto'!$D3","v":{"v":0,"d":"0.00"}}]
[null,"Partner 1 ring",{"v":2000,"d":"2,000.00"},{"v":2300,"d":"2,300.00"},{"$f":"'Kleding-receptie-muziek-foto'!$C4-'Kleding-receptie-muziek-foto'!$D4","v":{"v":-300,"d":"-300.00 "}}]
[null,"Partner 1 jurk/smoking",{"v":3000,"d":"3,000.00"},{"v":2750,"d":"2,750.00"},{"$f":"'Kleding-receptie-muziek-foto'!$C5-'Kleding-receptie-muziek-foto'!$D5","v":{"v":250,"d":"250.00"}}]
[null,"Partner 1 sluier/hoofddeksel",{"v":500,"d":"500.00"},{"v":500,"d":"500.00"},{"$f":"'Kleding-receptie-muziek-foto'!$C6-'Kleding-receptie-muziek-foto'!$D6","v":{"v":0,"d":"0.00"}}]
[null,"Partner 1 schoenen",{"v":350,"d":"350.00"},{"v":300,"d":"300.00"},{"$f":"'Kleding-receptie-muziek-foto'!$C7-'Kleding-receptie-muziek-foto'!$D7","v":{"v":50,"d":"50.00"}}]
[null,"Partner 1 sieraden",{"v":400,"d":"400.00"},{"v":550,"d":"550.00"},{"$f":"'Kleding-receptie-muziek-foto'!$C8-'Kleding-receptie-muziek-foto'!$D8","v":{"v":-150,"d":"-150.00 "}}]
[null,"Partner 1 kousen",{"v":20,"d":"20.00"},{"v":20,"d":"20.00"},{"$f":"'Kleding-receptie-muziek-foto'!$C9-'Kleding-receptie-muziek-foto'!$D9","v":{"v":0,"d":"0.00"}}]
[null,"Partner 2 ring",{"v":300,"d":"300.00"},{"v":250,"d":"250.00"},{"$f":"'Kleding-receptie-muziek-foto'!$C10-'Kleding-receptie-muziek-foto'!$D10","v":{"v":50,"d":"50.00"}}]
[null,"Partner 2 jurk/smoking",{"v":300,"d":"300.00"},{"v":350,"d":"350.00"},{"$f":"'Kleding-receptie-muziek-foto'!$C11-'Kleding-receptie-muziek-foto'!$D11","v":{"v":-50,"d":"-50.00 "}}]
[null,"Partner 2 sluier/hoofddeksel",{"v":500,"d":"500.00"},{"v":500,"d":"500.00"},{"$f":"'Kleding-receptie-muziek-foto'!$C12-'Kleding-receptie-muziek-foto'!$D12","v":{"v":0,"d":"0.00"}}]
[null,"Partner 2 schoenen",{"v":200,"d":"200.00"},{"v":175,"d":"175.00"},{"$f":"'Kleding-receptie-muziek-foto'!$C13-'Kleding-receptie-muziek-foto'!$D13","v":{"v":25,"d":"25.00"}}]
[null,"Partner 2 sieraden",{"v":400,"d":"400.00"},{"v":550,"d":"550.00"},{"$f":"'Kleding-receptie-muziek-foto'!$C14-'Kleding-receptie-muziek-foto'!$D14","v":{"v":-150,"d":"-150.00 "}}]
[null,"Partner 2 kousen",{"v":20,"d":"20.00"},{"v":25,"d":"25.00"},{"$f":"'Kleding-receptie-muziek-foto'!$C15-'Kleding-receptie-muziek-foto'!$D15","v":{"v":-5,"d":"-5.00 "}}]
[null,"Totaal kleding",{"$f":"SUBTOTAL(109,Kleding[GESCHAT])","v":{"v":9490,"d":"9,490.00"}},{"$f":"SUBTOTAL(109,Kleding[WERKELIJK])","v":{"v":9770,"d":"9,770.00"}},{"$f":"SUBTOTAL(109,Kleding[BOVEN/ONDER])","v":{"v":-280,"d":"-280.00 "}}]
[]
["Het label Receptie staat in de cel rechts.","Receptie*"]
["Voer de receptie, met uitzondering van kosten voor entertainment en versieringen, in in de tabel die in de cel rechts begint. De volgende aanwijzing staat in cel A31.","CATEGORIE","GESCHAT","WERKELIJK","BOVEN/ONDER"]
[null,"Kosten kamer/zaal",{"v":200,"d":"200.00"},{"v":150,"d":"150.00"},{"$f":"'Kleding-receptie-muziek-foto'!$C20-'Kleding-receptie-muziek-foto'!$D20","v":{"v":50,"d":"50.00"}}]
[null,"Tafels en stoelen",{"v":100,"d":"100.00"},{"v":50,"d":"50.00"},{"$f":"'Kleding-receptie-muziek-foto'!$C21-'Kleding-receptie-muziek-foto'!$D21","v":{"v":50,"d":"50.00"}}]
[null,"Eten",{"v":0,"d":"0.00"},{"v":0,"d":"0.00"},{"$f":"'Kleding-receptie-muziek-foto'!$C22-'Kleding-receptie-muziek-foto'!$D22","v":{"v":0,"d":"0.00"}}]
[null,"Drinken",{"v":0,"d":"0.00"},{"v":0,"d":"0.00"},{"$f":"'Kleding-receptie-muziek-foto'!$C23-'Kleding-receptie-muziek-foto'!$D23","v":{"v":0,"d":"0.00"}}]
[null,"Linnengoed",{"v":0,"d":"0.00"},{"v":0,"d":"0.00"},{"$f":"'Kleding-receptie-muziek-foto'!$C24-'Kleding-receptie-muziek-foto'!$D24","v":{"v":0,"d":"0.00"}}]
[null,"Taart",{"v":700,"d":"700.00"},{"v":700,"d":"700.00"},{"$f":"'Kleding-receptie-muziek-foto'!$C25-'Kleding-receptie-muziek-foto'!$D25","v":{"v":0,"d":"0.00"}}]
[null,"Aandenkens",{"v":50,"d":"50.00"},{"v":28,"d":"28.00"},{"$f":"'Kleding-receptie-muziek-foto'!$C26-'Kleding-receptie-muziek-foto'!$D26","v":{"v":22,"d":"22.00"}}]
[null,"Personeel en fooien",{"v":0,"d":"0.00"},{"v":0,"d":"0.00"},{"$f":"'Kleding-receptie-muziek-foto'!$C27-'Kleding-receptie-muziek-foto'!$D27","v":{"v":0,"d":"0.00"}}]
[null,"Totaal receptie",{"$f":"SUBTOTAL(109,Receptie[GESCHAT])","v":{"v":1050,"d":"1,050.00"}},{"$f":"SUBTOTAL(109,Receptie[WERKELIJK])","v":{"v":928,"d":"928.00"}},{"$f":"SUBTOTAL(109,Receptie[BOVEN/ONDER])","v":{"v":122,"d":"122.00"}}]
[null,"* Exclusief entertainment en versieringen"]
[]
["Het label Muziek/entertainment staat in de cel rechts.","Muziek/entertainment"]
["Voer de gegevens in in de tabel Muziek die begint in de cel rechts. De volgende aanwijzing staat in cel A37.","CATEGORIE","GESCHAT","WERKELIJK","BOVEN/ONDER"]
[null,"Muzikanten voor ceremonie",{"v":400,"d":"400.00"},{"v":400,"d":"400.00"},{"$f":"'Kleding-receptie-muziek-foto'!$C33-'Kleding-receptie-muziek-foto'!$D33","v":{"v":0,"d":"0.00"}}]
[null,"Band/DJ voor receptie",{"v":200,"d":"200.00"},{"v":0,"d":"0.00"},{"$f":"'Kleding-receptie-muziek-foto'!$C34-'Kleding-receptie-muziek-foto'!$D34","v":{"v":200,"d":"200.00"}}]
[null,"Totaal muziek/entertainment",{"$f":"SUBTOTAL(109,Muziek[GESCHAT])","v":{"v":600,"d":"600.00"}},{"$f":"SUBTOTAL(109,Muziek[WERKELIJK])","v":{"v":400,"d":"400.00"}},{"$f":"SUBTOTAL(109,Muziek[BOVEN/ONDER])","v":{"v":200,"d":"200.00"}}]
[]
["Het label Drukwerk/briefpapier staat in de cel rechts.","Drukwerk/briefpapier"]
["Voer de gegevens in in de tabel Drukwerk die begint in de cel rechts. De volgende aanwijzing staat in cel A50.","CATEGORIE","GESCHAT","WERKELIJK","BOVEN/ONDER"]
[null,"Uitnodigingen",{"v":500,"d":"500.00"},{"v":450,"d":"450.00"},{"$f":"'Kleding-receptie-muziek-foto'!$C39-'Kleding-receptie-muziek-foto'!$D39","v":{"v":50,"d":"50.00"}}]
[null,"Aankondigingen",{"v":200,"d":"200.00"},{"v":175,"d":"175.00"},{"$f":"'Kleding-receptie-muziek-foto'!$C40-'Kleding-receptie-muziek-foto'!$D40","v":{"v":25,"d":"25.00"}}]
[null,"Bedankkaarten",{"v":100,"d":"100.00"},{"v":100,"d":"100.00"},{"$f":"'Kleding-receptie-muziek-foto'!$C41-'Kleding-receptie-muziek-foto'!$D41","v":{"v":0,"d":"0.00"}}]
[null,"Persoonlijk briefpapier",{"v":0,"d":"0.00"},{"v":0,"d":"0.00"},{"$f":"'Kleding-receptie-muziek-foto'!$C42-'Kleding-receptie-muziek-foto'!$D42","v":{"v":0,"d":"0.00"}}]
[null,"Gastenboek",{"v":25,"d":"25.00"},{"v":25,"d":"25.00"},{"$f":"'Kleding-receptie-muziek-foto'!$C43-'Kleding-receptie-muziek-foto'!$D43","v":{"v":0,"d":"0.00"}}]
[null,"Programma's",{"v":75,"d":"75.00"},{"v":80,"d":"80.00"},{"$f":"'Kleding-receptie-muziek-foto'!$C44-'Kleding-receptie-muziek-foto'!$D44","v":{"v":-5,"d":"-5.00 "}}]
[null,"Receptieservetten",{"v":35,"d":"35.00"},{"v":40,"d":"40.00"},{"$f":"'Kleding-receptie-muziek-foto'!$C45-'Kleding-receptie-muziek-foto'!$D45","v":{"v":-5,"d":"-5.00 "}}]
[null,"Lucifersboekjes",{"v":0,"d":"0.00"},{"v":0,"d":"0.00"},{"$f":"'Kleding-receptie-muziek-foto'!$C46-'Kleding-receptie-muziek-foto'!$D46","v":{"v":0,"d":"0.00"}}]
[null,"Kalligrafie",{"v":0,"d":"0.00"},{"v":0,"d":"0.00"},{"$f":"'Kleding-receptie-muziek-foto'!$C47-'Kleding-receptie-muziek-foto'!$D47","v":{"v":0,"d":"0.00"}}]
[null,"Totaal drukwerk/briefpapier",{"$f":"SUBTOTAL(109,Drukwerk[GESCHAT])","v":{"v":935,"d":"935.00"}},{"$f":"SUBTOTAL(109,Drukwerk[WERKELIJK])","v":{"v":870,"d":"870.00"}},{"$f":"SUBTOTAL(109,Drukwerk[BOVEN/ONDER])","v":{"v":65,"d":"65.00"}}]
[]
["Het label Fotografie staat in de cel rechts.","Fotografie"]
["Voer de gegevens in in de tabel Fotografie die begint in de cel rechts.","CATEGORIE","GESCHAT","WERKELIJK","BOVEN/ONDER"]
[null,"Formele foto's",{"v":1300,"d":"1,300.00"},{"v":1300,"d":"1,300.00"},{"$f":"'Kleding-receptie-muziek-foto'!$C52-'Kleding-receptie-muziek-foto'!$D52","v":{"v":0,"d":"0.00"}}]
[null,"Extra afdrukken",{"v":25,"d":"25.00"},{"v":25,"d":"25.00"},{"$f":"'Kleding-receptie-muziek-foto'!$C53-'Kleding-receptie-muziek-foto'!$D53","v":{"v":0,"d":"0.00"}}]
[null,"Fotoalbums",{"v":100,"d":"100.00"},{"v":100,"d":"100.00"},{"$f":"'Kleding-receptie-muziek-foto'!$C54-'Kleding-receptie-muziek-foto'!$D54","v":{"v":0,"d":"0.00"}}]
[null,"Video-opnamen",{"v":200,"d":"200.00"},{"v":150,"d":"150.00"},{"$f":"'Kleding-receptie-muziek-foto'!$C55-'Kleding-receptie-muziek-foto'!$D55","v":{"v":50,"d":"50.00"}}]
[null,"Totaal fotografie",{"$f":"SUBTOTAL(109,Fotografie[GESCHAT])","v":{"v":1625,"d":"1,625.00"}},{"$f":"SUBTOTAL(109,Fotografie[WERKELIJK])","v":{"v":1575,"d":"1,575.00"}},{"$f":"SUBTOTAL(109,Fotografie[BOVEN/ONDER])","v":{"v":50,"d":"50.00"}}]

{"sheet":"Versiering-bloemen-cadeaus-reis","index":3,"n_rows":48,"n_cols":5,"rows_kept":48,"merged":[[8,1,8,4],[9,1,9,4],[18,1,18,4],[27,1,27,4],[34,1,34,4]]}
["Voer geschat en werkelijke kosten in voor elke categorie in de desbetreffende tabellen in dit werkelijk. Het bedrag boven of onder het budget wordt automatisch berekend. Het label Versieringen staat in de cel rechts. Cellen in deze kolom bevatten handige instructies voor het gebruik van dit werkblad. Druk op de pijl-omlaag om aan de slag te gaan.","Versieringen*"]
["Voer de kosten voor versieringen, met uitzondering van bloemen, in in de tabel die in de cel rechts begint. De volgende aanwijzing staat in cel A11.","CATEGORIE","GESCHAT","WERKELIJK","BOVEN/ONDER"]
[null,"Stoelstrikken",{"v":0,"d":"0.00"},{"v":0,"d":"0.00"},{"$f":"'Versiering-bloemen-cadeaus-reis'!$C3-'Versiering-bloemen-cadeaus-reis'!$D3","v":{"v":0,"d":"0.00"}}]
[null,"Tafelversieringen",{"v":300,"d":"300.00"},{"v":320,"d":"320.00"},{"$f":"'Versiering-bloemen-cadeaus-reis'!$C4-'Versiering-bloemen-cadeaus-reis'!$D4","v":{"v":-20,"d":"(20.00)"}}]
[null,"Kaarsen",{"v":100,"d":"100.00"},{"v":75,"d":"75.00"},{"$f":"'Versiering-bloemen-cadeaus-reis'!$C5-'Versiering-bloemen-cadeaus-reis'!$D5","v":{"v":25,"d":"25.00"}}]
[null,"Verlichting",{"v":100,"d":"100.00"},{"v":75,"d":"75.00"},{"$f":"'Versiering-bloemen-cadeaus-reis'!$C6-'Versiering-bloemen-cadeaus-reis'!$D6","v":{"v":25,"d":"25.00"}}]
[null,"Ballonnen",{"v":200,"d":"200.00"},{"v":250,"d":"250.00"},{"$f":"'Versiering-bloemen-cadeaus-reis'!$C7-'Versiering-bloemen-cadeaus-reis'!$D7","v":{"v":-50,"d":"(50.00)"}}]
[null,"Totaal versieringen",{"$f":"SUBTOTAL(109,Versieringen[GESCHAT])","v":{"v":700,"d":"700.00"}},{"$f":"SUBTOTAL(109,Versieringen[WERKELIJK])","v":{"v":720,"d":"720.00"}},{"$f":"SUBTOTAL(109,Versieringen[BOVEN/ONDER])","v":{"v":-20,"d":"(20.00)"}}]
[null,"*Exclusief bloemen"]
[]
["Het label Bloemen staat in de cel rechts.","Bloemen"]
["Voer de gegevens in in de tabel Bloemen die begint in de cel rechts. De volgende aanwijzing staat in cel A20.","CATEGORIE","GESCHAT","WERKELIJK","BOVEN/ONDER"]
[null,"Boeketten",{"v":500,"d":"500.00"},{"v":450,"d":"450.00"},{"$f":"'Versiering-bloemen-cadeaus-reis'!$C13-'Versiering-bloemen-cadeaus-reis'!$D13","v":{"v":50,"d":"50.00"}}]
[null,"Boutonnières",{"v":0,"d":"0.00"},{"v":0,"d":"0.00"},{"$f":"'Versiering-bloemen-cadeaus-reis'!$C14-'Versiering-bloemen-cadeaus-reis'!$D14","v":{"v":0,"d":"0.00"}}]
[null,"Corsages",{"v":0,"d":"0.00"},{"v":0,"d":"0.00"},{"$f":"'Versiering-bloemen-cadeaus-reis'!$C15-'Versiering-bloemen-cadeaus-reis'!$D15","v":{"v":0,"d":"0.00"}}]
[null,"Ceremonie",{"v":400,"d":"400.00"},{"v":400,"d":"400.00"},{"$f":"'Versiering-bloemen-cadeaus-reis'!$C16-'Versiering-bloemen-cadeaus-reis'!$D16","v":{"v":0,"d":"0.00"}}]
[null,"Receptie",{"v":0,"d":"0.00"},{"v":0,"d":"0.00"},{"$f":"'Versiering-bloemen-cadeaus-reis'!$C17-'Versiering-bloemen-cadeaus-reis'!$D17","v":{"v":0,"d":"0.00"}}]
[null,"Totaal bloemen",{"$f":"SUBTOTAL(109,Bloemen[GESCHAT])","v":{"v":900,"d":"900.00"}},{"$f":"SUBTOTAL(109,Bloemen[WERKELIJK])","v":{"v":850,"d":"850.00"}},{"$f":"SUBTOTAL(109,Bloemen[BOVEN/ONDER])","v":{"v":50,"d":"50.00"}}]
[]
["Het label Cadeaus staat in de cel rechts.","Cadeaus"]
["Voer de gegevens in in de tabel Cadeaus die begint in de cel rechts. De volgende aanwijzing staat in cel A29.","CATEGORIE","GESCHAT","WERKELIJK","BOVEN/ONDER"]
[null,"Gevolg",{"v":1000,"d":"1,000.00"},{"v":400,"d":"400.00"},{"$f":"'Versiering-bloemen-cadeaus-reis'!$C22-'Versiering-bloemen-cadeaus-reis'!$D22","v":{"v":600,"d":"600.00"}}]
[null,"Partner 1",{"v":150,"d":"150.00"},{"v":200,"d":"200.00"},{"$f":"'Versiering-bloemen-cadeaus-reis'!$C23-'Versiering-bloemen-cadeaus-reis'!$D23","v":{"v":-50,"d":"(50.00)"}}]
[null,"Partner 2",{"v":150,"d":"150.00"},{"v":200,"d":"200.00"},{"$f":"'Versiering-bloemen-cadeaus-reis'!$C24-'Versiering-bloemen-cadeaus-reis'!$D24","v":{"v":-50,"d":"(50.00)"}}]
[null,"Ouders",{"v":25,"d":"25.00"},{"v":25,"d":"25.00"},{"$f":"'Versiering-bloemen-cadeaus-reis'!$C25-'Versiering-bloemen-cadeaus-reis'!$D25","v":{"v":0,"d":"0.00"}}]
[null,"Sprekers/andere deelnemers",{"v":20,"d":"20.00"},{"v":250,"d":"250.00"},{"$f":"'Versiering-bloemen-cadeaus-reis'!$C26-'Versiering-bloemen-cadeaus-reis'!$D26","v":{"v":-230,"d":"(230.00)"}}]
[null,"Totaal cadeaus",{"$f":"SUBTOTAL(109,Cadeaus[GESCHAT])","v":{"v":1345,"d":"1,345.00"}},{"$f":"SUBTOTAL(109,Cadeaus[WERKELIJK])","v":{"v":1075,"d":"1,075.00"}},{"$f":"SUBTOTAL(109,Cadeaus[BOVEN/ONDER])","v":{"v":270,"d":"270.00"}}]
[]
["Het label reis-/vervoerskosten staat in de cel rechts.","Reis-/vervoerskosten"]
["Voer de gegevens in in de tabel Reiskosten die begint in de cel rechts. De volgende aanwijzing staat in cel A36.","CATEGORIE","GESCHAT","WERKELIJK","BOVEN/ONDER"]
[null,"Limousines/trolleybussen",{"v":100,"d":"100.00"},{"v":125,"d":"125.00"},{"$f":"'Versiering-bloemen-cadeaus-reis'!$C31-'Versiering-bloemen-cadeaus-reis'!$D31","v":{"v":-25,"d":"(25.00)"}}]
[null,"Parkeren",{"v":0,"d":"0.00"},{"v":40,"d":"40.00"},{"$f":"'Versiering-bloemen-cadeaus-reis'!$C32-'Versiering-bloemen-cadeaus-reis'!$D32","v":{"v":-40,"d":"(40.00)"}}]
[null,"Taxi's",{"v":0,"d":"0.00"},{"v":0,"d":"0.00"},{"$f":"'Versiering-bloemen-cadeaus-reis'!$C33-'Versiering-bloemen-cadeaus-reis'!$D33","v":{"v":0,"d":"0.00"}}]
[null,"Totaal reis-/vervoerskosten",{"$f":"SUBTOTAL(109,Reiskosten[GESCHAT])","v":{"v":100,"d":"100.00"}},{"$f":"SUBTOTAL(109,Reiskosten[WERKELIJK])","v":{"v":165,"d":"165.00"}},{"$f":"SUBTOTAL(109,Reiskosten[BOVEN/ONDER])","v":{"v":-65,"d":"(65.00)"}}]
[]
["Het label Overige uitgaven staat in de cel rechts.","Overige uitgaven"]
["Voer de gegevens in in de tabel Overige uitgaven die begint in de cel rechts.","CATEGORIE","GESCHAT","WERKELIJK","BOVEN/ONDER"]
[null,"Officiant",{"v":0,"d":"0.00"},{"v":0,"d":"0.00"},{"$f":"'Versiering-bloemen-cadeaus-reis'!$C38-'Versiering-bloemen-cadeaus-reis'!$D38","v":{"v":0,"d":"0.00"}}]
[null,"Kosten kerk/ceremonielocatie",{"v":40,"d":"40.00"},{"v":55,"d":"55.00"},{"$f":"'Versiering-bloemen-cadeaus-reis'!$C39-'Versiering-bloemen-cadeaus-reis'!$D39","v":{"v":-15,"d":"(15.00)"}}]
[null,"Bruiloftscoördinator",{"v":0,"d":"0.00"},{"v":0,"d":"0.00"},{"$f":"'Versiering-bloemen-cadeaus-reis'!$C40-'Versiering-bloemen-cadeaus-reis'!$D40","v":{"v":0,"d":"0.00"}}]
[null,"Repetitiediner",{"v":450,"d":"450.00"},{"v":450,"d":"450.00"},{"$f":"'Versiering-bloemen-cadeaus-reis'!$C41-'Versiering-bloemen-cadeaus-reis'!$D41","v":{"v":0,"d":"0.00"}}]
[null,"Verlovingsfeest",{"v":20,"d":"20.00"},{"v":50,"d":"50.00"},{"$f":"'Versiering-bloemen-cadeaus-reis'!$C42-'Versiering-bloemen-cadeaus-reis'!$D42","v":{"v":-30,"d":"(30.00)"}}]
[null,"Showers",{"v":30,"d":"30.00"},{"v":20,"d":"20.00"},{"$f":"'Versiering-bloemen-cadeaus-reis'!$C43-'Versiering-bloemen-cadeaus-reis'!$D43","v":{"v":10,"d":"10.00"}}]
[null,"Schoonheidssalon",{"v":45,"d":"45.00"},{"v":46,"d":"46.00"},{"$f":"'Versiering-bloemen-cadeaus-reis'!$C44-'Versiering-bloemen-cadeaus-reis'!$D44","v":{"v":-1,"d":"(1.00)"}}]
[null,"Vrijgezellenfeesten",{"v":0,"d":"0.00"},{"v":0,"d":"0.00"},{"$f":"'Versiering-bloemen-cadeaus-reis'!$C45-'Versiering-bloemen-cadeaus-reis'!$D45","v":{"v":0,"d":"0.00"}}]
[null,"Brunch",{"v":300,"d":"300.00"},{"v":400,"d":"400.00"},{"$f":"'Versiering-bloemen-cadeaus-reis'!$C46-'Versiering-bloemen-cadeaus-reis'!$D46","v":{"v":-100,"d":"(100.00)"}}]
[null,"Hotelkamers",{"v":0,"d":"0.00"},{"v":0,"d":"0.00"},{"$f":"'Versiering-bloemen-cadeaus-reis'!$C47-'Versiering-bloemen-cadeaus-reis'!$D47","v":{"v":0,"d":"0.00"}}]
[null,"Totaal overige uitgaven",{"$f":"SUBTOTAL(109,OverigeUitgaven[GESCHAT])","v":{"v":885,"d":"885.00"}},{"$f":"SUBTOTAL(109,OverigeUitgaven[WERKELIJK])","v":{"v":1021,"d":"1,021.00"}},{"$f":"SUBTOTAL(109,OverigeUitgaven[BOVEN/ONDER])","v":{"v":-136,"d":"(136.00)"}}]